[Event "Manhemjunioren 2024"]
[Site "Goteborgs Schackcentrum, Vegatan 20, Gothenburg, Sweden"]
[Date "2024.04.06"]
[Round "1.5"]
[White "Bergdahl, Daniel"]
[Black "Back, Arvid"]
[Result "1/2-1/2"]
[TimeControl "18 minutes + 10 seconds per move from move one."]
[WhiteFideId "1780921"]
[BlackFideId "1772821"]
[WhiteElo "1627"]
[BlackElo "1512"]

1. e4 {[%clk 00:18:18]} {[%emt 00:00:01]} e5 {[%clk 00:18:19]} {[%emt
00:00:01]} 2. Nf3 {[%clk 00:18:26]} {[%emt 00:00:02]} Nc6 {[%clk 00:18:28]}
{[%emt 00:00:02]} 3. Bb5 {[%clk 00:18:34]} {[%emt 00:00:01]} d6 {[%clk
00:18:34]} {[%emt 00:00:04]} 4. c3 {[%clk 00:18:43]} Bd7 {[%clk 00:18:39]}
{[%emt 00:00:06]} 5. d4 {[%clk 00:18:48]} {[%emt 00:00:05]} a6 {[%clk
00:18:46]} {[%emt 00:00:03]} 6. Bxc6 {[%clk 00:18:53]} {[%emt 00:00:04]} Bxc6
{[%clk 00:18:54]} {[%emt 00:00:02]} 7. dxe5 {[%clk 00:18:41]} {[%emt 00:00:23]}
dxe5 {[%clk 00:18:25]} {[%emt 00:00:39]} 8. O-O {[%clk 00:18:28]} {[%emt
00:00:22]} Qxd1 {[%clk 00:18:29]} {[%emt 00:00:06]} 9. Rxd1 {[%clk 00:18:34]}
{[%emt 00:00:04]} Bxe4 {[%clk 00:18:35]} {[%emt 00:00:04]} 10. Nxe5 {[%clk
00:18:41]} {[%emt 00:00:03]} Nf6 {[%clk 00:18:20]} {[%emt 00:00:26]} 11. Re1
{[%clk 00:18:33]} {[%emt 00:00:16]} Bd6 {[%clk 00:17:57]} {[%emt 00:00:34]} 12.
Nc4 {[%clk 00:18:30]} {[%emt 00:00:13]} O-O-O {[%clk 00:17:52]} {[%emt
00:00:15]} 13. Nxd6+ {[%clk 00:18:18]} {[%emt 00:00:22]} Rxd6 {[%clk 00:18:00]}
{[%emt 00:00:02]} 14. Bg5 {[%clk 00:18:11]} {[%emt 00:00:15]} Bxb1 {[%clk
00:16:59]} {[%emt 00:01:13]} 15. Raxb1 {[%clk 00:18:14]} {[%emt 00:00:07]} h6
{[%clk 00:17:07]} {[%emt 00:00:02]} 16. Bf4 {[%clk 00:18:14]} {[%emt 00:00:11]}
Rd7 {[%clk 00:16:16]} {[%emt 00:01:01]} 17. h3 {[%clk 00:17:55]} {[%emt
00:00:28]} Nd5 {[%clk 00:15:49]} {[%emt 00:00:37]} 18. Bg3 {[%clk 00:17:51]}
{[%emt 00:00:14]} b5 {[%clk 00:15:04]} {[%emt 00:00:55]} 19. Rbd1 {[%clk
00:17:25]} {[%emt 00:00:35]} Kd8 {[%clk 00:15:06]} {[%emt 00:00:09]} 20. Kf1
{[%clk 00:16:55]} {[%emt 00:00:40]} Re8 {[%clk 00:15:08]} {[%emt 00:00:08]} 21.
Rxe8+ {[%clk 00:16:52]} {[%emt 00:00:14]} Kxe8 {[%clk 00:15:17]} 22. Ke2 {[%clk
00:16:35]} {[%emt 00:00:27]} Ke7 {[%clk 00:15:02]} {[%emt 00:00:25]} 23. f3
{[%clk 00:16:33]} {[%emt 00:00:14]} Ke6 {[%clk 00:14:38]} {[%emt 00:00:34]} 24.
Rd4 {[%clk 00:16:26]} {[%emt 00:00:16]} f5 {[%clk 00:14:16]} {[%emt 00:00:32]}
25. Rd2 {[%clk 00:15:15]} {[%emt 00:01:20]} f4 {[%clk 00:14:02]} {[%emt
00:00:26]} 26. Bf2 {[%clk 00:15:14]} {[%emt 00:00:10]} g5 {[%clk 00:12:26]}
{[%emt 00:01:46]} 27. h4 {[%clk 00:14:45]} {[%emt 00:00:39]} c6 {[%clk
00:11:05]} {[%emt 00:01:31]} 28. hxg5 {[%clk 00:14:32]} {[%emt 00:00:23]} hxg5
{[%clk 00:11:14]} 29. g4 {[%clk 00:14:41]} {[%emt 00:00:02]} Ke5 {[%clk
00:09:27]} {[%emt 00:01:57]} 30. Bd4+ {[%clk 00:14:38]} {[%emt 00:00:12]} Ke6
{[%clk 00:09:35]} {[%emt 00:00:02]} 31. Bc5 {[%clk 00:14:36]} {[%emt 00:00:13]}
Ke5 {[%clk 00:09:01]} {[%emt 00:00:44]} 32. Rd4 {[%clk 00:14:28]} {[%emt
00:00:17]} Nf6 {[%clk 00:08:39]} {[%emt 00:00:32]} 33. Rxd7 {[%clk 00:13:14]}
{[%emt 00:01:24]} Nxd7 {[%clk 00:08:48]} {[%emt 00:00:01]} 34. Be7 {[%clk
00:13:22]} {[%emt 00:00:02]} Nf6 {[%clk 00:08:56]} {[%emt 00:00:03]} 35. Kd3
{[%clk 00:13:22]} {[%emt 00:00:10]} Nh7 {[%clk 00:09:04]} {[%emt 00:00:02]} 36.
b4 {[%clk 00:13:21]} {[%emt 00:00:11]} Kd5 {[%clk 00:09:02]} {[%emt 00:00:11]}
37. a3 {[%clk 00:13:22]} {[%emt 00:00:10]} Ke5 {[%clk 00:08:58]} {[%emt
00:00:14]} 38. c4 {[%clk 00:13:19]} {[%emt 00:00:14]} Nf6 {[%clk 00:07:02]}
{[%emt 00:02:05]} 39. Bxf6+ {[%clk 00:13:14]} {[%emt 00:00:15]} Kxf6 {[%clk
00:07:11]} 40. cxb5 {[%clk 00:13:22]} {[%emt 00:00:02]} axb5 {[%clk 00:06:45]}
{[%emt 00:00:36]} 41. Kd4 {[%clk 00:12:29]} 1/2-1/2

[Event "Manhemjunioren 2024"]
[Site "Goteborgs Schackcentrum, Vegatan 20, Gothenburg, Sweden"]
[Date "2024.04.06"]
[Round "1.6"]
[White "Holma, Tim"]
[Black "Bahl, Advaiya"]
[Result "0-1"]
[TimeControl "18 minutes + 10 seconds per move from move one."]
[WhiteFideId "1785850"]
[BlackFideId "1782002"]
[WhiteElo "1430"]
[BlackElo "1609"]

1. e4 {[%clk 00:18:18]} {[%emt 00:00:02]} e5 {[%clk 00:18:18]} {[%emt
00:00:02]} 2. Nf3 {[%clk 00:18:26]} {[%emt 00:00:02]} Nc6 {[%clk 00:18:26]}
{[%emt 00:00:02]} 3. Bc4 {[%clk 00:18:34]} {[%emt 00:00:02]} Bc5 {[%clk
00:18:33]} {[%emt 00:00:03]} 4. c3 {[%clk 00:18:41]} {[%emt 00:00:03]} Nf6
{[%clk 00:18:14]} {[%emt 00:00:28]} 5. d4 {[%clk 00:18:47]} {[%emt 00:00:04]}
exd4 {[%clk 00:18:19]} {[%emt 00:00:05]} 6. cxd4 {[%clk 00:18:44]} {[%emt
00:00:13]} Bb4+ {[%clk 00:18:25]} {[%emt 00:00:04]} 7. Bd2 {[%clk 00:18:15]}
{[%emt 00:00:39]} Bxd2+ {[%clk 00:18:03]} {[%emt 00:00:31]} 8. Nbxd2 {[%clk
00:18:15]} {[%emt 00:00:10]} d5 {[%clk 00:17:51]} {[%emt 00:00:23]} 9. e5
{[%clk 00:16:28]} {[%emt 00:01:57]} dxc4 {[%clk 00:17:17]} {[%emt 00:00:44]} 10.
exf6 {[%clk 00:16:08]} {[%emt 00:00:29]} Qxf6 {[%clk 00:17:14]} {[%emt
00:00:13]} 11. Nxc4 {[%clk 00:15:02]} {[%emt 00:01:16]} Bg4 {[%clk 00:16:18]}
{[%emt 00:01:07]} 12. d5 {[%clk 00:14:39]} {[%emt 00:00:33]} Bxf3 {[%clk
00:14:51]} {[%emt 00:01:37]} 13. gxf3 {[%clk 00:13:54]} {[%emt 00:00:55]} Nd4
{[%clk 00:13:23]} {[%emt 00:01:39]} 14. Qa4+ {[%clk 00:12:34]} {[%emt
00:01:29]} b5 {[%clk 00:12:17]} {[%emt 00:01:16]} 15. Qa5 {[%clk 00:08:48]}
{[%emt 00:03:56]} bxc4 {[%clk 00:11:12]} {[%emt 00:01:15]} 16. Qa4+ {[%clk
00:07:42]} {[%emt 00:01:16]} c6 {[%clk 00:08:39]} {[%emt 00:02:43]} 17. O-O-O
{[%clk 00:05:44]} {[%emt 00:02:08]} O-O {[%clk 00:06:13]} {[%emt 00:02:36]} 18.
Qxc4 {[%clk 00:03:59]} {[%emt 00:01:54]} Nxf3 {[%clk 00:04:57]} {[%emt
00:01:27]} 19. dxc6 {[%clk 00:02:43]} {[%emt 00:01:26]} Ne5 {[%clk 00:04:48]}
{[%emt 00:00:19]} 20. Qc3 {[%clk 00:01:26]} {[%emt 00:01:27]} Qxc6 {[%clk
00:04:27]} {[%emt 00:00:31]} 21. Qxc6 {[%clk 00:01:12]} {[%emt 00:00:23]} Nxc6
{[%clk 00:04:35]} {[%emt 00:00:03]} 22. Rd7 {[%clk 00:01:12]} {[%emt 00:00:10]}
Rfd8 {[%clk 00:04:34]} {[%emt 00:00:11]} 23. Rhd1 {[%clk 00:00:22]} {[%emt
00:01:00]} Rac8 {[%clk 00:03:53]} {[%emt 00:00:51]} 24. Rxd8+ {[%clk 00:00:14]}
{[%emt 00:00:17]} Rxd8 {[%clk 00:04:02]} {[%emt 00:00:02]} 25. Rxd8+ {[%clk
00:00:21]} {[%emt 00:00:03]} Nxd8 {[%clk 00:04:10]} {[%emt 00:00:03]} 26. b4
{[%clk 00:00:21]} {[%emt 00:00:09]} f5 {[%clk 00:04:18]} {[%emt 00:00:02]} 27.
b5 {[%clk 00:00:20]} {[%emt 00:00:11]} Kf7 {[%clk 00:04:26]} {[%emt 00:00:02]}
28. Kc2 {[%clk 00:00:26]} {[%emt 00:00:03]} Ke6 {[%clk 00:04:30]} {[%emt
00:00:06]} 29. Kc3 {[%clk 00:00:23]} {[%emt 00:00:13]} Kd5 {[%clk 00:04:38]}
{[%emt 00:00:03]} 30. Kb4 {[%clk 00:00:21]} {[%emt 00:00:12]} g5 {[%clk
00:04:38]} {[%emt 00:00:10]} 31. a4 {[%clk 00:00:28]} {[%emt 00:00:03]} h5
{[%clk 00:04:06]} {[%emt 00:00:42]} 32. a5 {[%clk 00:00:22]} {[%emt 00:00:16]}
f4 {[%clk 00:04:04]} {[%emt 00:00:11]} 33. b6 {[%clk 00:00:12]} {[%emt
00:00:20]} axb6 {[%clk 00:04:12]} {[%emt 00:00:02]} 34. a6 {[%clk 00:00:21]}
{[%emt 00:00:02]} Nc6+ {[%clk 00:04:17]} {[%emt 00:00:05]} 35. Kb5 {[%clk
00:00:19]} {[%emt 00:00:11]} g4 {[%clk 00:04:21]} {[%emt 00:00:06]} 36. Kxb6
{[%clk 00:00:21]} {[%emt 00:00:06]} h4 {[%clk 00:04:29]} {[%emt 00:00:03]} 37.
a7 {[%clk 00:00:17]} {[%emt 00:00:15]} Nxa7 {[%clk 00:04:37]} {[%emt 00:00:02]}
38. Kxa7 {[%clk 00:00:25]} g3 {[%clk 00:04:46]} {[%emt 00:00:02]} 39. fxg3
{[%clk 00:00:30]} {[%emt 00:00:04]} fxg3 {[%clk 00:04:52]} {[%emt 00:00:05]} 40.
hxg3 {[%clk 00:00:38]} {[%emt 00:00:01]} hxg3 {[%clk 00:05:01]} {[%emt
00:00:02]} 41. Kb7 {[%clk 00:00:46]} {[%emt 00:00:02]} g2 {[%clk 00:05:09]}
{[%emt 00:00:02]} 42. Ka7 {[%clk 00:00:54]} {[%emt 00:00:02]} g1=Q+ {[%clk
00:05:14]} {[%emt 00:00:05]} 0-1

[Event "Manhemjunioren 2024"]
[Site "Goteborgs Schackcentrum, Vegatan 20, Gothenburg, Sweden"]
[Date "2024.04.06"]
[Round "1.7"]
[White "Kaplan, Viktor"]
[Black "Hansson, Isabelle"]
[Result "1-0"]
[TimeControl "18 minutes + 10 seconds per move from move one."]
[WhiteFideId "1780956"]
[BlackFideId "1773593"]
[WhiteElo "1596"]
[BlackElo "1414"]

1. d4 {[%clk 00:18:19]} d5 {[%clk 00:18:19]} {[%emt 00:00:01]} 2. c4 {[%clk
00:18:28]} c6 {[%clk 00:18:09]} {[%emt 00:00:20]} 3. Nc3 {[%clk 00:18:36]}
{[%emt 00:00:02]} Nf6 {[%clk 00:18:16]} {[%emt 00:00:03]} 4. Nf3 {[%clk
00:18:45]} {[%emt 00:00:01]} Bf5 {[%clk 00:18:16]} {[%emt 00:00:10]} 5. cxd5
{[%clk 00:18:51]} {[%emt 00:00:03]} cxd5 {[%clk 00:18:24]} {[%emt 00:00:03]} 6.
Qb3 {[%clk 00:18:57]} {[%emt 00:00:03]} b6 {[%clk 00:18:14]} {[%emt 00:00:20]}
7. Bf4 {[%clk 00:18:28]} {[%emt 00:00:39]} Nc6 {[%clk 00:17:57]} {[%emt
00:00:27]} 8. e3 {[%clk 00:17:46]} {[%emt 00:00:51]} Na5 {[%clk 00:16:53]}
{[%emt 00:01:14]} 9. Qa4+ {[%clk 00:17:46]} {[%emt 00:00:11]} Bd7 {[%clk
00:16:58]} {[%emt 00:00:06]} 10. Bb5 {[%clk 00:15:56]} {[%emt 00:02:00]} Nc4
{[%clk 00:16:40]} {[%emt 00:00:28]} 11. Bxd7+ {[%clk 00:14:17]} {[%emt
00:01:48]} Qxd7 {[%clk 00:16:45]} {[%emt 00:00:05]} 12. Nb5 {[%clk 00:13:19]}
{[%emt 00:01:09]} Nxb2 {[%clk 00:15:49]} {[%emt 00:01:06]} 13. Nc7+ {[%clk
00:13:09]} {[%emt 00:00:20]} Kd8 {[%clk 00:15:39]} {[%emt 00:00:20]} 14. Qxd7+
{[%clk 00:13:15]} {[%emt 00:00:03]} Nxd7 {[%clk 00:15:39]} {[%emt 00:00:10]} 15.
Nxa8 {[%clk 00:13:02]} {[%emt 00:00:24]} Nd3+ {[%clk 00:15:04]} {[%emt
00:00:46]} 16. Ke2 {[%clk 00:12:10]} {[%emt 00:01:02]} Nxf4+ {[%clk 00:15:03]}
{[%emt 00:00:10]} 17. exf4 {[%clk 00:12:18]} {[%emt 00:00:02]} e6 {[%clk
00:14:54]} {[%emt 00:00:20]} 18. Ne5 {[%clk 00:10:26]} {[%emt 00:02:02]} Nxe5
{[%clk 00:13:05]} {[%emt 00:01:59]} 19. fxe5 {[%clk 00:10:33]} {[%emt
00:00:03]} Bb4 {[%clk 00:13:13]} {[%emt 00:00:02]} 20. Rac1 {[%clk 00:00:00]}
{[%emt 00:03:05]} Kd7 {[%clk 00:10:43]} {[%emt 00:01:08]} 21. Rc7+ {[%clk
00:10:41]} {[%emt 00:00:54]} Kd8 {[%clk 00:10:44]} {[%emt 00:00:10]} 22. Rxa7
{[%clk 00:10:41]} {[%emt 00:00:10]} b5 {[%clk 00:09:33]} {[%emt 00:01:20]} 23.
Rc1 {[%clk 00:09:59]} {[%emt 00:00:52]} Be7 {[%clk 00:06:44]} {[%emt 00:02:59]}
24. Nb6 {[%clk 00:09:59]} {[%emt 00:00:11]} Ke8 {[%clk 00:06:43]} {[%emt
00:00:11]} 25. Rc8+ {[%clk 00:09:53]} {[%emt 00:00:15]} Bd8 {[%clk 00:06:51]}
{[%emt 00:00:02]} 26. Rd7 {[%clk 00:09:57]} {[%emt 00:00:06]} f6 {[%clk
00:06:57]} {[%emt 00:00:05]} 27. Rcxd8# {[%clk 00:10:05]} 1-0

[Event "Manhemjunioren 2024"]
[Site "Goteborgs Schackcentrum, Vegatan 20, Gothenburg, Sweden"]
[Date "2024.04.06"]
[Round "2.1"]
[White "Lappas Lonnermark, Johannes"]
[Black "Norberg, Arild"]
[Result "0-1"]
[TimeControl "18 minutes + 10 seconds per move from move one."]
[WhiteFideId "1773437"]
[BlackFideId "1774484"]
[WhiteElo "1577"]
[BlackElo "1683"]

1. e4 {[%clk 00:18:18]} {[%emt 00:00:02]} e5 {[%clk 00:18:16]} {[%emt
00:00:04]} 2. Nf3 {[%clk 00:18:26]} {[%emt 00:00:02]} Nc6 {[%clk 00:18:18]}
{[%emt 00:00:08]} 3. Bc4 {[%clk 00:18:34]} {[%emt 00:00:02]} Bc5 {[%clk
00:18:13]} {[%emt 00:00:16]} 4. c3 {[%clk 00:18:42]} {[%emt 00:00:02]} d6
{[%clk 00:17:59]} {[%emt 00:00:24]} 5. O-O {[%clk 00:18:45]} {[%emt 00:00:07]}
Bg4 {[%clk 00:18:03]} {[%emt 00:00:06]} 6. d3 {[%clk 00:18:38]} {[%emt
00:00:18]} h6 {[%clk 00:17:57]} {[%emt 00:00:17]} 7. Bb3 {[%clk 00:18:36]}
{[%emt 00:00:11]} Qf6 {[%clk 00:17:57]} {[%emt 00:00:10]} 8. Nbd2 {[%clk
00:18:42]} {[%emt 00:00:04]} Nge7 {[%clk 00:17:51]} {[%emt 00:00:17]} 9. Re1
{[%clk 00:18:44]} {[%emt 00:00:08]} Bh5 {[%clk 00:17:42]} {[%emt 00:00:18]} 10.
Nf1 {[%clk 00:18:13]} {[%emt 00:00:41]} Bxf3 {[%clk 00:17:31]} {[%emt
00:00:21]} 11. Qxf3 {[%clk 00:18:21]} {[%emt 00:00:02]} Qxf3 {[%clk 00:17:40]}
{[%emt 00:00:02]} 12. gxf3 {[%clk 00:18:29]} {[%emt 00:00:01]} Ng6 {[%clk
00:17:36]} {[%emt 00:00:14]} 13. Kg2 {[%clk 00:17:30]} {[%emt 00:01:09]} h5
{[%clk 00:17:18]} {[%emt 00:00:28]} 14. Kg3 {[%clk 00:16:55]} {[%emt 00:00:45]}
h4+ {[%clk 00:17:17]} {[%emt 00:00:10]} 15. Kg2 {[%clk 00:16:18]} {[%emt
00:00:47]} Nf4+ {[%clk 00:17:14]} {[%emt 00:00:13]} 16. Bxf4 {[%clk 00:16:23]}
{[%emt 00:00:05]} exf4 {[%clk 00:17:23]} {[%emt 00:00:02]} 17. d4 {[%clk
00:16:31]} {[%emt 00:00:02]} h3+ {[%clk 00:17:10]} {[%emt 00:00:23]} 18. Kg1
{[%clk 00:16:33]} {[%emt 00:00:08]} Bb6 {[%clk 00:17:17]} {[%emt 00:00:03]} 19.
Nd2 {[%clk 00:16:14]} {[%emt 00:00:29]} Ne7 {[%clk 00:16:37]} {[%emt 00:00:50]}
20. Nc4 {[%clk 00:16:00]} {[%emt 00:00:25]} Ng6 {[%clk 00:16:12]} {[%emt
00:00:35]} 21. Nxb6 {[%clk 00:15:20]} {[%emt 00:00:50]} axb6 {[%clk 00:16:13]}
{[%emt 00:00:09]} 22. Rad1 {[%clk 00:14:32]} {[%emt 00:00:58]} Nh4 {[%clk
00:14:57]} {[%emt 00:01:26]} 23. Rd3 {[%clk 00:14:40]} {[%emt 00:00:02]} c6
{[%clk 00:14:51]} {[%emt 00:00:16]} 24. e5 {[%clk 00:14:32]} {[%emt 00:00:17]}
d5 {[%clk 00:14:47]} {[%emt 00:00:14]} 25. c4 {[%clk 00:11:21]} {[%emt
00:03:21]} dxc4 {[%clk 00:14:52]} {[%emt 00:00:06]} 26. Bxc4 {[%clk 00:11:29]}
{[%emt 00:00:02]} Ra4 {[%clk 00:14:52]} {[%emt 00:00:09]} 27. Rc1 {[%clk
00:07:38]} {[%emt 00:04:00]} b5 {[%clk 00:14:51]} {[%emt 00:00:12]} 28. Bb3
{[%clk 00:06:47]} {[%emt 00:01:01]} Rxd4 {[%clk 00:14:56]} {[%emt 00:00:05]} 29.
Rcd1 {[%clk 00:06:04]} {[%emt 00:00:52]} Rxd3 {[%clk 00:14:47]} {[%emt
00:00:19]} 30. Rxd3 {[%clk 00:06:12]} {[%emt 00:00:02]} Ke7 {[%clk 00:14:50]}
{[%emt 00:00:08]} 31. Bd1 {[%clk 00:04:11]} {[%emt 00:02:11]} Rd8 {[%clk
00:14:46]} {[%emt 00:00:12]} 32. Rxd8 {[%clk 00:03:23]} {[%emt 00:01:00]} Kxd8
{[%clk 00:14:56]} 33. Kf1 {[%clk 00:03:31]} {[%emt 00:00:02]} b6 {[%clk
00:14:42]} {[%emt 00:00:23]} 34. Ke2 {[%clk 00:03:38]} {[%emt 00:00:03]} g5
{[%clk 00:14:25]} {[%emt 00:00:27]} 35. Kd3 {[%clk 00:03:34]} {[%emt 00:00:14]}
c5 {[%clk 00:14:04]} {[%emt 00:00:32]} 36. Ke4 {[%clk 00:03:43]} {[%emt
00:00:01]} Kd7 {[%clk 00:13:48]} {[%emt 00:00:27]} 37. Kd5 {[%clk 00:01:48]}
{[%emt 00:02:05]} Ng6 {[%clk 00:13:25]} {[%emt 00:00:33]} 38. Bc2 {[%clk
00:01:48]} {[%emt 00:00:10]} Ne7+ {[%clk 00:13:30]} {[%emt 00:00:05]} 39. Ke4
{[%clk 00:01:42]} {[%emt 00:00:16]} Ke6 {[%clk 00:13:34]} {[%emt 00:00:05]} 40.
Bd3 {[%clk 00:01:35]} {[%emt 00:00:18]} c4 {[%clk 00:13:22]} {[%emt 00:00:23]}
41. Bf1 {[%clk 00:01:43]} {[%emt 00:00:01]} f5+ {[%clk 00:12:30]} {[%emt
00:01:02]} 42. exf6 {[%clk 00:01:31]} {[%emt 00:00:33]} Kxf6 {[%clk 00:12:22]}
{[%emt 00:00:27]} 43. Bxh3 {[%clk 00:01:38]} {[%emt 00:00:03]} Nc6 {[%clk
00:12:15]} {[%emt 00:00:17]} 44. Bd7 {[%clk 00:01:41]} {[%emt 00:00:07]} Na7
{[%clk 00:12:19]} {[%emt 00:00:07]} 45. Kd5 {[%clk 00:00:45]} {[%emt 00:01:06]}
Ke7 {[%clk 00:12:11]} {[%emt 00:00:18]} 46. Bc6 {[%clk 00:00:24]} {[%emt
00:00:31]} Nxc6 {[%clk 00:12:09]} {[%emt 00:00:12]} 47. Kxc6 {[%clk 00:00:32]}
{[%emt 00:00:02]} b4 {[%clk 00:12:18]} 0-1